[Event "9th Amsterdam Science Park A 2019"]
[Site "Amsterdam"]
[Date "2019.07.12"]
[Round "7.4"]
[White "Elgersma, Onno"]
[Black "Meshkovs, Nikita"]
[Result "0-1"]
[ECO "B03"]
[WhiteElo "2232"]
[BlackElo "2550"]
[Annotator "ChessBase"]
[PlyCount "110"]
[EventDate "2019.07.06"]
[EventType "swiss"]
[EventCountry "NED"]
[SourceTitle "playchess.com"]
[Source "ChessBase"]
[SourceQuality "1"]
[TimeControl "40/5400+30:1800+30"]

1. e4 {[%emt 0:00:00]} Nf6 {[%emt 0:01:01]} 2. e5 {[%emt 0:00:39]} Nd5 {[%emt 0:00:06]} 3. d4 {[%emt 0:01:10]} d6 {[%emt 0:00:11]} 4. c4 {[%emt 0:02:06]} Nb6 {[%emt 0:00:07]} 5. exd6 {[%emt 0:00:33]} exd6 {[%emt 0:00:24]} 6. Bd3 {[%emt 0:05:03]} Nc6 {[%emt 0:03:37]} 7. Ne2 {[%emt 0:00:32]} Nb4 {[%emt 0:00:45]} 8. O-O {[%emt 0:10:04]} Be7 {[%emt 0:02:45]} 9. Nbc3 {[%emt 0:01:38]} Nxd3 {[%emt 0:00:46]} 10. Qxd3 {[%emt 0:00:05]} O-O {[%emt 0:02:25]} 11. b3 {[%emt 0:04:00]} Re8 {[%emt 0:06:25]} 12. Nf4 {[%emt 0:07:25]} c6 {[%emt 0:17:02]} 13. Re1 {[%emt 0:05:52]} Bd7 {[%emt 0:06:49]} 14. Ba3 {[%emt 0:06:58]} Bf8 {[%emt 0:06:00]} 15. Rxe8 {[%emt 0:12:01]} Qxe8 {[%emt 0:00:16]} 16. Ne4 {[%emt 0:02:47]} d5 {[%emt 0:13:56]} 17. Ng5 {[%emt 0:22:11]} g6 {[%emt 0:00:46]} 18. Bxf8 {[%emt 0:00:26]} Qxf8 {[%emt 0:00:59]} 19. cxd5 {[%emt 0:02:22]} Qe7 {[%emt 0:02:07]} 20. Nf3 {[%emt 0:03:32]} Nxd5 {[%emt 0:02:23]} 21. Nxd5 {[%emt 0:00:42]} cxd5 {[%emt 0:00:02]} 22. Re1 {[%emt 0:02:12]} Qb4 {[%emt 0:03:39]} 23. h3 {[%emt 0:02:54]} Rc8 {[%emt 0:01:11]} 24. Qe3 {[%emt 0:01:14]} Re8 {[%emt 0:09:21]} 25. Qd2 {[%emt 0:00:40]} Rxe1+ {[%emt 0:04:34]} 26. Qxe1 {[%emt 0:00:02]} Qxe1+ {[%emt 0:00:06]} 27. Nxe1 {[%emt 0:00:04]} Bf5 {[%emt 0:00:05]} 28. Nf3 {[%emt 0:00:51]} Bb1 {[%emt 0:02:13]} 29. a3 {[%emt 0:00:09]} f6 {[%emt 0:02:23]} 30. h4 {[%emt 0:01:23]} a5 {[%emt 0:01:17]} 31. Kh2 {[%emt 0:01:49]} Bc2 {[%emt 0:04:49]} 32. Nd2 {[%emt 0:01:55]} Kf7 {[%emt 0:00:07]} 33. g4 {[%emt 0:01:50]} h6 {[%emt 0:03:52]} 34. Kg3 {[%emt 0:00:49]} Ke6 {[%emt 0:00:26]} 35. Kf4 {[%emt 0:00:45]} Bd1 {[%emt 0:02:12]} 36. f3 {[%emt 0:00:36]} Kd6 {[%emt 0:00:17]} 37. Ke3 {[%emt 0:00:22]} Kc6 {[%emt 0:01:14]} 38. Kd3 {[%emt 0:00:10]} g5 {[%emt 0:01:36]} 39. hxg5 {[%emt 0:00:32]} hxg5 {[%emt 0:00:02]} 40. Kc3 {[%emt 0:00:09]} Be2 {[%emt 0:00:42]} 41. a4 {[%emt 0:05:03]} b6 {[%emt 0:07:18]} 42. Kb2 {[%emt 0:01:49]} Kd6 {[%emt 0:01:06]} 43. b4 {[%emt 0:00:53]} Bd1 {[%emt 0:02:08]} 44. Ka3 {[%emt 0:00:19]} Kc7 {[%emt 0:01:28]} 45. bxa5 {[%emt 0:01:33]} bxa5 {[%emt 0:00:03]} 46. Kb2 {[%emt 0:01:17]} Bxa4 {[%emt 0:02:26]} 47. Kc1 {[%emt 0:00:26]} Bb5 {[%emt 0:00:13]} 48. Kd1 {[%emt 0:00:34]} a4 {[%emt 0:00:37]} 49. Nb1 {[%emt 0:00:37]} Bd3 {[%emt 0:03:10]} 50. Nc3 {[%emt 0:01:22]} Bc4 {[%emt 0:00:03]} 51. Nb1 {[%emt 0:00:58]} Kb6 {[%emt 0:01:04]} 52. Kd2 {[%emt 0:01:32]} Ka5 {[%emt 0:00:55]} 53. Kc3 {[%emt 0:04:29]} Be2 {[%emt 0:00:18]} 54. Nd2 {[%emt 0:00:05]} Kb5 {[%emt 0:00:29]} 55. Kc2 {[%emt 0:00:12]} Kb4 {[%emt 0:00:16]} 0-1

[Event "9th Amsterdam Science Park A 2019"]
[Site "Amsterdam"]
[Date "2019.07.12"]
[Round "7.5"]
[White "Belous, Mikhail"]
[Black "Gleizerov, Evgeny"]
[Result "0-1"]
[ECO "A90"]
[WhiteElo "2289"]
[BlackElo "2498"]
[Annotator "ChessBase"]
[PlyCount "100"]
[EventDate "2019.07.06"]
[EventType "swiss"]
[EventCountry "NED"]
[SourceTitle "playchess.com"]
[Source "ChessBase"]
[SourceQuality "1"]
[TimeControl "40/5400+30:1800+30"]

1. d4 {[%emt 0:00:00]} e6 {[%emt 0:25:59]} 2. c4 {[%emt 0:00:00]} f5 {[%emt 0:00:04]} 3. g3 {[%emt 0:00:11]} Nf6 {[%emt 0:00:10]} 4. Bg2 {[%emt 0:00:17]} d5 {[%emt 0:00:05]} 5. Nf3 {[%emt 0:00:16]} Be7 {[%emt 0:00:05]} 6. O-O {[%emt 0:01:25]} O-O {[%emt 0:00:06]} 7. Qc2 {[%emt 0:01:53]} Ne4 {[%emt 0:00:23]} 8. Nc3 {[%emt 0:06:03]} c6 {[%emt 0:00:05]} 9. Bf4 {[%emt 0:03:37]} Nd7 {[%emt 0:04:02]} 10. Rad1 {[%emt 0:01:04]} Nd6 {[%emt 0:06:24]} 11. c5 {[%emt 0:08:20]} Nf7 {[%emt 0:00:11]} 12. b4 {[%emt 0:02:21]} g5 {[%emt 0:10:48]} 13. Bc1 {[%emt 0:02:19]} b6 {[%emt 0:02:17]} 14. Ne1 {[%emt 0:11:32]} bxc5 {[%emt 0:02:59]} 15. bxc5 {[%emt 0:02:08]} a5 {[%emt 0:01:15]} 16. Nd3 {[%emt 0:10:05]} Ba6 {[%emt 0:00:15]} 17. Kh1 {[%emt 0:01:22]} Bf6 {[%emt 0:01:31]} 18. Be3 {[%emt 0:03:51]} Qc7 {[%emt 0:04:02]} 19. f3 {[%emt 0:03:05]} e5 {[%emt 0:05:14]} 20. Nxe5 {[%emt 0:07:01]} Nfxe5 {[%emt 0:00:09]} 21. dxe5 {[%emt 0:00:06]} Qxe5 {[%emt 0:04:09]} 22. Bd4 {[%emt 0:00:38]} Qe7 {[%emt 0:01:09]} 23. Bxf6 {[%emt 0:01:26]} Qxf6 {[%emt 0:06:47]} 24. f4 {[%emt 0:02:22]} g4 {[%emt 0:01:03]} 25. Nxd5 {[%emt 0:03:13]} cxd5 {[%emt 0:00:06]} 26. Bxd5+ {[%emt 0:00:17]} Kh8 {[%emt 0:00:03]} 27. Bxa8 {[%emt 0:00:51]} Rxa8 {[%emt 0:00:02]} 28. Rd6 {[%emt 0:01:15]} Qe7 {[%emt 0:06:08]} 29. Rfd1 {[%emt 0:02:30]} Nf8 {[%emt 0:02:57]} 30. R1d2 {[%emt 0:11:30]} Bc8 {[%emt 0:05:44]} 31. c6 {[%emt 0:00:41]} Be6 {[%emt 0:00:31]} 32. e4 {[%emt 0:01:16]} Rc8 {[%emt 0:01:46]} 33. exf5 {[%emt 0:01:48]} Bf7 {[%emt 0:00:22]} 34. Qc3+ {[%emt 0:00:43]} Kg8 {[%emt 0:00:04]} 35. Qe5 {[%emt 0:00:19]} Qa7 {[%emt 0:02:40]} 36. Kg2 {[%emt 0:06:01]} Re8 {[%emt 0:02:19]} 37. Qd4 {[%emt 0:00:22]} Qa6 {[%emt 0:02:23]} 38. Kf2 {[%emt 0:00:45]} Qb5 {[%emt 0:00:41]} 39. f6 {[%emt 0:03:45]} Qh5 {[%emt 0:01:27]} 40. Kg1 {[%emt 0:02:47]} Re1+ {[%emt 0:00:39]} 41. Kf2 {[%emt 0:30:18]} Rc1 {[%emt 0:09:31]} 42. Ke3 {[%emt 0:00:00]} Re1+ {[%emt 0:05:05]} 43. Kf2 {[%emt 0:00:00]} Rc1 {[%emt 0:00:44]} 44. Ke3 {[%emt 0:00:00]} Qb5 {[%emt 0:00:13]} 45. Re2 {[%emt 0:00:00]} Rc4 {[%emt 0:03:49]} 46. Qe5 {[%emt 0:00:00]} Qb6+ {[%emt 0:00:13]} 47. Kd2 {[%emt 0:00:00]} Ng6 {[%emt 0:03:41]} 48. c7 {[%emt 0:00:00]} Qxc7 {[%emt 0:04:32]} 49. Ra6 {[%emt 0:00:46]} Qd7+ {[%emt 0:02:40]} 50. Rd6 {[%emt 0:01:01]} Nxe5 {[%emt 0:00:14]} 0-1

[Event "9th Amsterdam Science Park A 2019"]
[Site "Amsterdam"]
[Date "2019.07.12"]
[Round "7.6"]
[White "Smirnova, Ekaterina"]
[Black "Bosboom, Manuel"]
[Result "0-1"]
[ECO "A40"]
[WhiteElo "2184"]
[BlackElo "2418"]
[Annotator "NA"]
[PlyCount "78"]
[EventDate "2019.07.06"]
[EventType "swiss"]
[EventCountry "NED"]
[SourceTitle "playchess.com"]
[Source "ChessBase"]
[SourceQuality "1"]
[TimeControl "40/5400+30:1800+30"]

1. d4 {[%emt 0:00:00]} e6 {[%emt 0:00:52]} 2. c4 {[%emt 0:00:10]} b6 {[%emt 0:02:10]} 3. a3 {[%emt 0:01:58]} Bb7 {[%emt 0:07:23]} 4. Nc3 {[%emt 0:00:19]} g6 {[%emt 0:00:34]} 5. e4 {[%emt 0:01:35]} Bg7 {[%emt 0:04:14]} 6. Nf3 {[%emt 0:00:23]} Ne7 {[%emt 0:01:41]} 7. Be2 {[%emt 0:01:38]} d6 {[%emt 0:07:24]} 8. O-O {[%emt 0:00:36]} Nd7 {[%emt 0:00:05]} 9. Be3 {[%emt 0:05:26]} h6 {[%emt 0:07:37]} 10. h4 {[%emt 0:03:36]} Nf6 {[%emt 0:01:54]} 11. Nd2 {[%emt 0:02:07]} h5 {[%emt 0:12:36]} 12. b4 {[%emt 0:02:26]} O-O {[%emt 0:18:17]} 13. Rc1 {[%emt 0:09:04]} Nh7 {[%emt 0:04:44]} 14. c5 {[%emt 0:14:44]} d5 {[%emt 0:03:32]} 15. e5 {[%emt 0:12:00]} bxc5 {[%emt 0:03:29]} 16. bxc5 {[%emt 0:00:08]} Nf5 {[%emt 0:00:06]} 17. g3 {[%emt 0:01:45]} Nxe3 {[%emt 0:06:10]} 18. fxe3 {[%emt 0:00:02]} Bh6 {[%emt 0:00:24]} 19. Rf3 {[%emt 0:00:20]} g5 {[%emt 0:03:14]} 20. hxg5 {[%emt 0:00:25]} Qxg5 {[%emt 0:00:29]} 21. Kg2 {[%emt 0:02:06]} f6 {[%emt 0:00:43]} 22. c6 {[%emt 0:06:54]} Bxc6 {[%emt 0:00:36]} 23. Na2 {[%emt 0:01:33]} Be8 {[%emt 0:00:25]} 24. Rxc7 {[%emt 0:00:11]} Bg6 {[%emt 0:00:15]} 25. exf6 {[%emt 0:04:54]} Nxf6 {[%emt 0:01:59]} 26. Rf4 {[%emt 0:00:51]} Rae8 {[%emt 0:07:27]} 27. Nf3 {[%emt 0:05:29]} Ng4 {[%emt 0:00:22]} 28. Nxg5 {[%emt 0:07:36]} Nxe3+ {[%emt 0:00:04]} 29. Kh3 {[%emt 0:01:01]} Nxd1 {[%emt 0:00:40]} 30. Rxf8+ {[%emt 0:00:28]} Rxf8 {[%emt 0:00:42]} 31. Nxe6 {[%emt 0:00:38]} Rf2 {[%emt 0:01:13]} 32. Bxd1 {[%emt 0:01:52]} Bf5+ {[%emt 0:00:30]} 33. g4 {[%emt 0:00:01]} Bxe6 {[%emt 0:00:16]} 34. Nb4 {[%emt 0:00:49]} Bf4 {[%emt 0:00:14]} 35. Rc2 {[%emt 0:00:01]} Rf1 {[%emt 0:00:41]} 36. Be2 {[%emt 0:00:36]} Rg1 {[%emt 0:01:30]} 37. Rc3 {[%emt 0:06:47]} hxg4+ 38. Bxg4 {[%emt 0:00:06]} Bxg4+ {[%emt 0:00:26]} 39. Kh4 {[%emt 0:00:03]} Bf5 {[%emt 0:00:28]} 0-1

[Event "9th Amsterdam Science Park A 2019"]
[Site "Amsterdam"]
[Date "2019.07.12"]
[Round "7.7"]
[White "De Rover, Yong Hoon"]
[Black "De Groote, Ewoud"]
[Result "1/2-1/2"]
[ECO "A40"]
[WhiteElo "2391"]
[BlackElo "2225"]
[Annotator "NA"]
[PlyCount "77"]
[EventDate "2019.07.06"]
[EventType "swiss"]
[EventCountry "NED"]
[SourceTitle "playchess.com"]
[Source "ChessBase"]
[SourceQuality "1"]
[TimeControl "40/5400+30:1800+30"]

1. d4 {[%emt 0:00:00]} Nf6 {[%emt 0:24:37]} 2. c4 {[%emt 0:00:15]} e6 {[%emt 0:00:06]} 3. g3 {[%emt 0:00:19]} d5 {[%emt 0:00:47]} 4. Nf3 {[%emt 0:00:10]} a6 {[%emt 0:00:47]} 5. Bg2 {[%emt 0:00:42]} dxc4 {[%emt 0:01:20]} 6. O-O {[%emt 0:12:02]} Nc6 {[%emt 0:01:29]} 7. e3 {[%emt 0:06:09]} Bd7 {[%emt 0:02:12]} 8. Qe2 {[%emt 0:02:14]} Bd6 {[%emt 0:00:40]} 9. Qxc4 {[%emt 0:05:02]} O-O {[%emt 0:02:11]} 10. Rd1 {[%emt 0:07:34]} Qe7 {[%emt 0:06:17]} 11. Nc3 {[%emt 0:03:44]} Rfd8 {[%emt 0:11:37]} 12. Qe2 {[%emt 0:30:45]} h6 {[%emt 0:05:07]} 13. h3 {[%emt 0:04:14]} Rab8 {[%emt 0:09:29]} 14. b3 {[%emt 0:04:07]} e5 {[%emt 0:04:40]} 15. d5 {[%emt 0:00:41]} Na7 {[%emt 0:00:45]} 16. a4 {[%emt 0:02:11]} c6 {[%emt 0:06:58]} 17. dxc6 {[%emt 0:00:15]} Nxc6 {[%emt 0:00:23]} 18. Nd2 {[%emt 0:04:22]} Be6 {[%emt 0:05:05]} 19. Nc4 {[%emt 0:00:33]} Bb4 {[%emt 0:02:18]} 20. Bb2 {[%emt 0:00:15]} Na5 {[%emt 0:07:34]} 21. Nxe5 {[%emt 0:03:50]} Nxb3 {[%emt 0:00:08]} 22. Rxd8+ {[%emt 0:00:29]} Rxd8 {[%emt 0:00:13]} 23. Rd1 {[%emt 0:00:07]} Nc5 {[%emt 0:01:07]} 24. Kh2 {[%emt 0:04:46]} Bb3 {[%emt 0:00:48]} 25. Rxd8+ {[%emt 0:00:30]} Qxd8 {[%emt 0:00:01]} 26. Ng4 {[%emt 0:00:42]} Ba5 {[%emt 0:04:14]} 27. Nxf6+ {[%emt 0:01:39]} Qxf6 {[%emt 0:00:01]} 28. Ne4 {[%emt 0:01:19]} Qf5 {[%emt 0:00:09]} 29. Nxc5 {[%emt 0:02:09]} Qxc5 {[%emt 0:00:01]} 30. Bxb7 {[%emt 0:00:25]} Qc2 {[%emt 0:01:30]} 31. Qxc2 {[%emt 0:01:04]} Bxc2 {[%emt 0:00:02]} 32. Bc6 {[%emt 0:00:10]} Bb4 {[%emt 0:01:13]} 33. Kg2 {[%emt 0:01:24]} f6 {[%emt 0:00:16]} 34. f3 {[%emt 0:02:01]} Kf7 {[%emt 0:00:23]} 35. Kf2 {[%emt 0:00:37]} Ke7 {[%emt 0:00:48]} 36. g4 {[%emt 0:00:21]} Kd6 {[%emt 0:00:12]} 37. Be8 {[%emt 0:00:16]} Ke7 {[%emt 0:00:07]} 38. Bc6 {[%emt 0:00:22]} Kd6 {[%emt 0:00:01]} 39. Be8 {[%emt 0:01:00] Ke5} 1/2-1/2

[Event "9th Amsterdam Science Park A 2019"]
[Site "Amsterdam"]
[Date "2019.07.12"]
[Round "7.8"]
[White "Tirelli, Mauro"]
[Black "Keuning, Selwin"]
[Result "0-1"]
[ECO "B36"]
[WhiteElo "2247"]
[BlackElo "2078"]
[Annotator "NA"]
[PlyCount "80"]
[EventDate "2019.07.06"]
[EventType "swiss"]
[EventCountry "NED"]
[SourceTitle "playchess.com"]
[Source "ChessBase"]
[SourceQuality "1"]
[TimeControl "40/5400+30:1800+30"]

1. e4 {[%emt 0:00:00]} c5 {[%emt 0:00:00]} 2. Nf3 {[%emt 0:00:00]} g6 {[%emt 0:00:00]} 3. d4 {[%emt 0:00:00]} cxd4 {[%emt 0:00:00]} 4. Nxd4 {[%emt 0:00:00]} Nc6 {[%emt 0:00:00]} 5. c4 {[%emt 0:00:00]} Nf6 {[%emt 0:00:24]} 6. Nc3 {[%emt 0:00:01]} d6 {[%emt 0:00:14]} 7. Be2 {[%emt 0:05:43]} Nxd4 {[%emt 0:00:15]} 8. Qxd4 {[%emt 0:00:05]} Bg7 {[%emt 0:00:06]} 9. O-O {[%emt 0:00:41]} O-O {[%emt 0:00:20]} 10. Bg5 {[%emt 0:13:52]} Be6 {[%emt 0:04:55]} 11. Rac1 {[%emt 0:01:15]} Nd5 {[%emt 0:02:53]} 12. Qd1 {[%emt 0:05:48]} Nxc3 {[%emt 0:02:16]} 13. bxc3 {[%emt 0:00:05]} Re8 {[%emt 0:03:47]} 14. Qa4 {[%emt 0:01:34]} Qd7 {[%emt 0:02:28]} 15. Qb4 {[%emt 0:09:05]} Qc6 {[%emt 0:04:37]} 16. Bd3 {[%emt 0:03:39]} Rac8 {[%emt 0:03:29]} 17. Rfe1 {[%emt 0:08:32]} b6 {[%emt 0:05:15]} 18. Qa3 {[%emt 0:00:20]} Qc5 {[%emt 0:02:03]} 19. Qxc5 {[%emt 0:01:34]} Rxc5 {[%emt 0:00:02]} 20. Be3 {[%emt 0:00:28]} Rcc8 {[%emt 0:10:53]} 21. c5 {[%emt 0:02:13]} bxc5 {[%emt 0:01:55]} 22. c4 {[%emt 0:00:44]} Rb8 {[%emt 0:01:55]} 23. Rb1 {[%emt 0:00:02]} Rb4 {[%emt 0:06:14]} 24. Rec1 {[%emt 0:06:02]} Reb8 {[%emt 0:01:53]} 25. Rxb4 {[%emt 0:00:08]} Rxb4 {[%emt 0:00:06]} 26. Kf1 {[%emt 0:00:29]} f5 {[%emt 0:07:33]} 27. exf5 {[%emt 0:01:03]} gxf5 {[%emt 0:00:22]} 28. Rc2 {[%emt 0:00:51]} Bd7 {[%emt 0:05:14]} 29. Ke2 {[%emt 0:01:43]} Ba4 {[%emt 0:02:35]} 30. Rc1 {[%emt 0:00:08]} Rb2+ {[%emt 0:00:45]} 31. Kf3 {[%emt 0:01:19]} e6 {[%emt 0:01:37]} 32. Rb1 {[%emt 0:00:50]} Rxa2 {[%emt 0:04:45]} 33. Rb8+ {[%emt 0:00:10]} Kf7 {[%emt 0:00:05]} 34. Rc8 {[%emt 0:02:08]} Be5 {[%emt 0:06:30]} 35. g3 {[%emt 0:01:44]} Bd7 {[%emt 0:02:49]} 36. Rc7 {[%emt 0:00:34]} Ke8 {[%emt 0:00:06]} 37. Bg5 {[%emt 0:00:10]} d5 {[%emt 0:02:57]} 38. Rb7 {[%emt 0:00:02]} dxc4 {[%emt 0:00:14]} 39. Bxc4 {[%emt 0:00:05]} Bc6+ {[%emt 0:00:04]} 40. Ke3 {[%emt 0:00:08]} Bd4+ {[%emt 0:00:05]} 0-1

[Event "9th Amsterdam Science Park A 2019"]
[Site "Amsterdam"]
[Date "2019.07.12"]
[Round "7.9"]
[White "Baarslag, Ed"]
[Black "Elgersma, Simon"]
[Result "1-0"]
[ECO "D31"]
[WhiteElo "2220"]
[BlackElo "2130"]
[Annotator "NA"]
[PlyCount "101"]
[EventDate "2019.07.06"]
[EventType "swiss"]
[EventCountry "NED"]
[SourceTitle "playchess.com"]
[Source "ChessBase"]
[SourceQuality "1"]
[TimeControl "40/5400+30:1800+30"]

1. d4 {[%emt 0:00:00]} d5 {[%emt 0:00:00]} 2. c4 {[%emt 0:00:33]} e6 {[%emt 0:00:00]} 3. Nc3 {[%emt 0:00:10]} a6 {[%emt 0:00:07]} 4. cxd5 {[%emt 0:00:58]} exd5 {[%emt 0:00:07]} 5. Bf4 {[%emt 0:00:22]} Nf6 {[%emt 0:00:10]} 6. e3 {[%emt 0:00:47]} Bd6 {[%emt 0:00:09]} 7. Bxd6 {[%emt 0:01:25]} Qxd6 {[%emt 0:00:20]} 8. Bd3 {[%emt 0:00:29]} O-O {[%emt 0:08:00]} 9. Nge2 {[%emt 0:02:31]} Re8 {[%emt 0:04:10]} 10. Qc2 {[%emt 0:02:22]} b6 {[%emt 0:06:01]} 11. Ng3 {[%emt 0:11:26]} Bb7 {[%emt 0:07:48]} 12. O-O {[%emt 0:07:09]} c5 {[%emt 0:05:28]} 13. Rad1 {[%emt 0:08:58]} Nbd7 {[%emt 0:08:43]} 14. Rfe1 {[%emt 0:06:55]} Rac8 {[%emt 0:12:13]} 15. Bf5 {[%emt 0:14:30]} g6 {[%emt 0:06:34]} 16. dxc5 {[%emt 0:05:24]} Rxc5 {[%emt 0:10:46]} 17. Bxd7 {[%emt 0:04:26]} Qxd7 {[%emt 0:00:52]} 18. Qa4 {[%emt 0:02:28]} b5 {[%emt 0:05:43]} 19. Qd4 {[%emt 0:02:08]} Qc6 {[%emt 0:01:34]} 20. f3 {[%emt 0:02:09]} Rc4 {[%emt 0:01:51]} 21. Qd3 {[%emt 0:00:28]} Qc5 {[%emt 0:01:46]} 22. Kf2 {[%emt 0:05:47]} h5 {[%emt 0:05:13]} 23. Nce2 {[%emt 0:03:41]} h4 {[%emt 0:02:04]} 24. Nf1 {[%emt 0:00:05]} Bc8 {[%emt 0:01:29]} 25. Nd4 {[%emt 0:00:37]} Qc7 {[%emt 0:00:59]} 26. Kg1 {[%emt 0:01:24]} Qe5 {[%emt 0:02:21]} 27. b3 {[%emt 0:01:14]} Rc7 {[%emt 0:00:17]} 28. Rc1 {[%emt 0:00:26]} Rxc1 {[%emt 0:00:33]} 29. Rxc1 {[%emt 0:00:02]} Qg5 {[%emt 0:00:41]} 30. f4 {[%emt 0:06:25]} Qh5 {[%emt 0:03:11]} 31. h3 {[%emt 0:00:42]} Ne4 {[%emt 0:01:17]} 32. Qe2 {[%emt 0:02:03]} Qh6 {[%emt 0:01:38]} 33. Nd2 {[%emt 0:01:30]} Ng3 {[%emt 0:01:16]} 34. Qf3 {[%emt 0:01:18]} g5 {[%emt 0:01:15]} 35. Rc6 {[%emt 0:05:08]} Qg7 {[%emt 0:00:00]} 36. fxg5 {[%emt 0:01:06]} Qxg5 {[%emt 0:00:42]} 37. Qf4 {[%emt 0:00:05]} Qg7 {[%emt 0:01:07]} 38. N2f3 {[%emt 0:00:37]} Bd7 {[%emt 0:00:54]} 39. Rc7 {[%emt 0:00:12]} Bxh3 {[%emt 0:01:04]} 40. Ng5 {[%emt 0:01:20]} Be6 {[%emt 0:01:01]} 41. Qxh4 {[%emt 0:06:14]} Nf5 {[%emt 0:08:16]} 42. Nxf5 {[%emt 0:02:14]} Bxf5 {[%emt 0:01:41]} 43. Nxf7 {[%emt 0:02:50]} Kf8 {[%emt 0:07:14]} 44. Qb4+ {[%emt 0:05:39]} Kg8 {[%emt 0:00:11]} 45. Qf4 {[%emt 0:00:47]} Qa1+ {[%emt 0:03:51]} 46. Kh2 {[%emt 0:00:10]} Bg6 {[%emt 0:00:06]} 47. Qg5 {[%emt 0:03:34]} Re6 {[%emt 0:03:47]} 48. Qd8+ {[%emt 0:01:41]} Kh7 {[%emt 0:00:15]} 49. Ne5+ {[%emt 0:03:03]} Kh6 {[%emt 0:00:29]} 50. Qh4+ {[%emt 0:00:08]} Bh5 {[%emt 0:00:11]} 51. Qf4# {[%emt 0:00:08]} 1-0

[Event "9th Amsterdam Science Park A 2019"]
[Site "Amsterdam"]
[Date "2019.07.12"]
[Round "7.10"]
[White "Dimitrijeski, Kristian"]
[Black "Cornelisse, Ticho"]
[Result "1-0"]
[ECO "A41"]
[WhiteElo "2186"]
[BlackElo "2067"]
[Annotator "NA"]
[PlyCount "66"]
[EventDate "2019.07.06"]
[EventType "swiss"]
[EventCountry "NED"]
[SourceTitle "playchess.com"]
[Source "ChessBase"]
[SourceQuality "1"]
[TimeControl "40/5400+30:1800+30"]

1. d4 {[%emt 0:00:00]} d6 {[%emt 0:00:00]} 2. Nf3 {[%emt 0:00:00]} g6 {[%emt 0:00:00]} 3. c4 {[%emt 0:00:00]} Bg7 {[%emt 0:00:00]} 4. Nc3 {[%emt 0:00:22]} Nc6 {[%emt 0:00:29]} 5. d5 {[%emt 0:00:23]} Ne5 {[%emt 0:01:10]} 6. Nxe5 {[%emt 0:00:58]} Bxe5 {[%emt 0:00:10]} 7. Qc2 {[%emt 0:02:37]} Bg7 {[%emt 0:02:43]} 8. e4 {[%emt 0:00:21]} e5 {[%emt 0:00:26]} 9. Bd3 {[%emt 0:05:36]} Ne7 {[%emt 0:03:32]} 10. O-O {[%emt 0:02:13]} O-O {[%emt 0:00:16]} 11. f4 {[%emt 0:04:10]} f5 {[%emt 0:03:31]} 12. fxe5 {[%emt 0:00:38]} fxe4 {[%emt 0:05:31]} 13. Rxf8+ {[%emt 0:06:16]} Qxf8 {[%emt 0:02:09]} 14. Nxe4 {[%emt 0:01:14]} Bxe5 {[%emt 0:00:21]} 15. Bg5 {[%emt 0:06:13]} Bf5 {[%emt 0:03:43]} 16. Rf1 {[%emt 0:02:26]} Qg7 {[%emt 0:04:26]} 17. b3 {[%emt 0:07:59]} Rf8 {[%emt 0:00:16]} 18. Qe2 {[%emt 0:15:39]} Bd7 {[%emt 0:21:50]} 19. Rxf8+ {[%emt 0:04:15]} Qxf8 {[%emt 0:00:39]} 20. g4 {[%emt 0:08:42]} Kg7 {[%emt 0:02:21]} 21. Kg2 {[%emt 0:03:18]} Ng8 {[%emt 0:00:20]} 22. h3 {[%emt 0:02:12]} Nf6 {[%emt 0:15:02]} 23. Qe3 {[%emt 0:02:27]} Qb8 {[%emt 0:06:40]} 24. Bh6+ {[%emt 0:01:27]} Kh8 {[%emt 0:03:51]} 25. Ng5 {[%emt 0:02:37]} Qe8 {[%emt 0:01:35]} 26. Nf3 {[%emt 0:01:31]} b6 {[%emt 0:09:14]} 27. Nxe5 {[%emt 0:02:05]} dxe5 {[%emt 0:01:04]} 28. Qf2 {[%emt 0:03:17]} Qe7 {[%emt 0:01:13]} 29. Bg5 {[%emt 0:01:00]} Kg7 {[%emt 0:00:22]} 30. Qh4 {[%emt 0:00:36]} Qd6 {[%emt 0:01:35]} 31. Qh6+ {[%emt 0:01:28]} Kf7 {[%emt 0:01:14]} 32. Bxf6 {[%emt 0:00:45]} Qxf6 {[%emt 0:01:18]} 33. Qxh7+ {[%emt 0:00:11]} Kf8 {[%emt 0:00:26]} 1-0

[Event "9th Amsterdam Science Park A 2019"]
[Site "Amsterdam"]
[Date "2019.07.12"]
[Round "7.11"]
[White "De Jong, Tom"]
[Black "Honkoop, Gilian"]
[Result "1-0"]
[ECO "C84"]
[WhiteElo "2176"]
[BlackElo "2003"]
[Annotator "NA"]
[PlyCount "57"]
[EventDate "2019.07.06"]
[EventType "swiss"]
[EventCountry "NED"]
[SourceTitle "playchess.com"]
[Source "ChessBase"]
[SourceQuality "1"]
[TimeControl "40/5400+30:1800+30"]

1. e4 {[%emt 0:00:00]} e5 {[%emt 0:00:00]} 2. Nf3 {[%emt 0:00:00]} Nc6 {[%emt 0:00:00]} 3. Bb5 {[%emt 0:00:00]} a6 {[%emt 0:00:00]} 4. Ba4 {[%emt 0:00:00]} Nf6 {[%emt 0:00:00]} 5. O-O {[%emt 0:00:10]} Be7 {[%emt 0:00:00]} 6. d3 {[%emt 0:00:30]} b5 {[%emt 0:00:04]} 7. Bb3 {[%emt 0:00:06]} d6 {[%emt 0:00:22]} 8. a3 {[%emt 0:00:28]} O-O {[%emt 0:00:05]} 9. Nc3 {[%emt 0:00:07]} Nb8 {[%emt 0:00:56]} 10. h3 {[%emt 0:06:29]} Nbd7 {[%emt 0:00:45]} 11. Be3 {[%emt 0:05:41]} c5 {[%emt 0:04:24]} 12. Nh4 {[%emt 0:15:39]} Nb6 {[%emt 0:24:33]} 13. f4 {[%emt 0:08:26]} Ng4 {[%emt 0:07:13]} 14. hxg4 {[%emt 0:04:12]} exf4 {[%emt 0:00:19]} 15. Bxf4 {[%emt 0:09:20]} Bxh4 {[%emt 0:00:22]} 16. Qe2 {[%emt 0:02:38]} Bf6 {[%emt 0:02:24]} 17. Be3 {[%emt 0:04:04]} c4 {[%emt 0:18:53]} 18. Ba2 {[%emt 0:08:18]} d5 {[%emt 0:05:42]} 19. exd5 {[%emt 0:02:26]} Nxd5 {[%emt 0:03:57]} 20. Nxd5 {[%emt 0:00:29]} Qxd5 {[%emt 0:00:05]} 21. dxc4 {[%emt 0:02:33]} Qe5 {[%emt 0:04:00]} 22. Qf3 {[%emt 0:09:19]} Bb7 {[%emt 0:07:04]} 23. Qf4 {[%emt 0:03:58]} Qxb2 {[%emt 0:00:31]} 24. cxb5 {[%emt 0:01:49]} axb5 {[%emt 0:03:09]} 25. g5 {[%emt 0:04:03]} Ra4 {[%emt 0:10:05]} 26. Qf2 {[%emt 0:03:25]} Be5 {[%emt 0:01:44]} 27. g6 {[%emt 0:01:33]} Rg4 {[%emt 0:05:27]} 28. Qxf7+ {[%emt 0:00:47]} Rxf7 {[%emt 0:00:26]} 29. gxf7+ {[%emt 0:00:17] Rf4} 1-0